Cogmind - Beta 13 @@@ ROGUE MODE // 2024.04.10 @ 10:43:40 Player: Broonsbane Result: Core destroyed Performance ------------- Evolutions (2) 1000 Regions Visited (5) 1000 Robots Destroyed (37) 185 Value Destroyed (978) 978 Prototype IDs (24) 480 Alien Tech Used (0) 0 Bonus (300) 300 TOTAL SCORE: 3943 Bonus ------- Aligned with FarCom 300 Cogmind --------- Core Integrity 0/550 Matter 300/300 Energy 78/100 System Corruption 9% Temperature Cool (9) Movement Core (50) Location -8/Materials Parts ------- > --- POWER (2) -------- (None) > --- PROPULSION (2) --- (None) > --- UTILITY (4) ------ Targeting Computer > --- WEAPON (3) ------- (None) > --- INVENTORY (5) ---- Large Battery (200) Peak State ------------ > --- POWER ------------ Light Nuclear Core > --- PROPULSION ------- Light Treads Light Treads > --- UTILITY ---------- High-capacity Storage Unit Signal Interpreter > --- WEAPON ----------- EM Shotgun Firepult > --- INVENTORY -------- Light Ion Engine Improved Heat Sink Cooling System Large Battery Experimental Sensor Array Targeting Computer EM Pulse Gun EM Shotgun Rocket Launcher Rocket Launcher [Rating: 31] Favorites ----------- Power Light Nuclear Core Engine Light Ion Engine Power Core Light Nuclear Core Propulsion Light Treads Treads Light Treads Utility Signal Interpreter Device Cooling System Storage High-capacity Storage Unit Processor Signal Interpreter Protection Light Armor Plating Weapon EM Shotgun Energy Gun EM Shotgun Energy Cannon Firepult Ballistic Gun Light Assault Rifle Ballistic Cannon Improved Light Cannon Launcher Rocket Launcher Build | -11 -10 -10 -10 -9 -8 ------- Run | Yrd Mat Min Exi Min Mat Slots Evolved 4 | . . . . . 4 Power 1 | . . . . . 1 Propulsion . | . . . . . . Utility 2 | . . . . . 2 Weapon 1 | . . . . . 1 Parts Attached 31 | 4 7 1 . . 19 Power 5 | 1 1 . . . 3 Engine 4 | 1 . . . . 3 Core 1 | . 1 . . . . Reactor . | . . . . . . Propulsion 5 | . 2 . . . 3 Treads 5 | . 2 . . . 3 Leg . | . . . . . . Wheel . | . . . . . . Hover . | . . . . . . Flight . | . . . . . . Utility 9 | 1 2 1 . . 5 Device 4 | . 1 . . . 3 Storage 2 | 1 . 1 . . . Processor 2 | . 1 . . . 1 Hackware . | . . . . . . Protection 1 | . . . . . 1 Artifact . | . . . . . . Weapon 12 | 2 2 . . . 8 Energy Gun 6 | 2 2 . . . 2 Energy Cannon 2 | . . . . . 2 Ballistic Gun 1 | . . . . . 1 Ballistic Cannon 1 | . . . . . 1 Launcher 2 | . . . . . 2 Special Weapon . | . . . . . . Impact Weapon . | . . . . . . Slashing Weapon . | . . . . . . Piercing Weapon . | . . . . . . Special Melee Weapon . | . . . . . . Unidentified Prototypes 1 | . . . . . 1 Corrupted Parts 1 | . . . . . 1 System Corruption 1 | . . . . . 1 Parts Lost 20 | . . . . . 20 Power 4 | . . . . . 4 Propulsion 5 | . . . . . 5 Utility 4 | . . . . . 4 Weapon 7 | . . . . . 7 Highest Loss Streak 12 | . . . . . 12 To Critical Strikes 1 | . . . . . 1 Average Slot Usage (%) 90 | . 98 100 100 100 42 Engine 2 | . 8 . . . 4 Core 10 | . 5 14 14 14 2 Treads 25 | . 26 28 28 28 11 Device 3 | . 12 . . . 2 Storage 12 | . 14 14 14 14 3 Processor 10 | . 1 14 14 14 6 Energy Gun 23 | . 28 28 28 28 2 Naked Turns 5 | . . . . . 5 Heaviest Build 70 | 12 18 51 51 51 70 Greatest Support 40 | 3 40 40 40 40 40 Greatest Overweight (x) 21 | 3 4 1 1 1 21 Average Overweight (x) . | 2 . . 1 1 . Largest Inventory Capacity 20 | 8 8 20 20 20 20 Average Capacity 13 | 7 8 11 20 20 11 Most Carried 12 | 3 8 8 10 11 12 Average Carried 7 | 1 6 7 9 10 4 Final Capacity 20 | 8 8 20 20 20 5 Final Carried 11 | 3 8 8 10 11 1 Class Distribution -------------------- 94% | Mutant 3% | Skirmisher Dominant Class ---------------- Mutant | -10/Materials Mutant | -10/Mines Mutant | -10/Exiles Mutant | -9/Mines Mutant | -8/Materials Resources | -11 -10 -10 -10 -9 -8 ----------- Run | Yrd Mat Min Exi Min Mat Matter Collected 525 | 196 114 . . 10 205 Remotely . | . . . . . . Salvage Created 1098 | . 244 244 . 98 512 Parts 68 | . 14 27 . 4 23 Haulers Intercepted . | . . . . . . Recyclers Shooed . | . . . . . . Parts Field Recycled . | . . . . . . Retrieved Matter . | . . . . . . Parts Self-Destructed . | . . . . . . Prevented . | . . . . . . Kills | -11 -10 -10 -10 -9 -8 ------- Run | Yrd Mat Min Exi Min Mat Combat Hostiles Destroyed 31 | . 5 11 . 2 13 Guns 20 | . 5 11 . 2 2 Cannons 3 | . . . . . 3 AOE 5 | . . . . . 5 Classes Destroyed 7 | . 2 1 . . 4 Worker 2 | . . . . . 2 Recycler 2 | . . . . . 2 Operator 1 | . . . . . 1 Watcher 1 | . 1 . . . . Swarmer 13 | . . 9 . . 4 Grunt 15 | . 5 2 . 2 6 Sentry 3 | . . . . . 3 Best Kill Streak 6 | . 3 5 . 2 6 Combat Bots Only 5 | . 2 5 . 2 5 Max Kills in Single Turn 3 | . 1 2 . 2 3 Gunslinging 1 | . . . . 1 . Exploded 2 | . . . . . 2 Melee . | . . . . . . Uniques/NPCs Destroyed . | . . . . . . Combat | -11 -10 -10 -10 -9 -8 -------- Run | Yrd Mat Min Exi Min Mat Hostile Shots Fired 222 | . 13 37 . 11 161 Missed 69 | . 7 19 . 5 38 Damage Taken 2440 | . 100 142 . 89 2109 Core 626 | . 41 10 . 18 557 Absorbed by Shields . | . . . . . . Regen/Repaired (Parts) 31 | . 31 . . . . Core Remaining (%) 86 | 100 . . . 72 . Volleys Fired 69 | . 12 15 . 5 37 Largest 2 | . 2 2 . 2 2 Hottest 270 | . 90 90 . 90 270 Shots Fired 104 | . 24 30 . 10 40 Gun 73 | . 24 30 . 10 9 Cannon 28 | . . . . . 28 Launcher 3 | . . . . . 3 Special . | . . . . . . Kinetic 26 | . . . . . 26 Thermal 10 | . 7 . . . 3 Explosive 3 | . . . . . 3 Electromagnetic 65 | . 17 30 . 10 8 Robot Hit Streak 17 | . 6 8 . 4 17 Robot Miss Streak 4 | . 2 4 . 2 1 Penetration Max . | . . . . . . Secondary Targets 3 | . 1 1 . 1 . Max Gunslinging Chain 1 | . 1 1 . 1 . Shots Hit Robots 78 | . 16 20 . 9 33 Core Hits 71 | . 12 18 . 6 35 Critical Kills . | . . . . . . Critical Parts Destroyed . | . . . . . . Critical Strikes . | . . . . . . Melee Attacks . | . . . . . . Impact . | . . . . . . Slashing . | . . . . . . Piercing . | . . . . . . Sneak Attacks . | . . . . . . Combat Hostiles . | . . . . . . Follow-up Attacks . | . . . . . . Damage Inflicted 1911 | . 266 228 . 112 1305 Guns 671 | . 237 228 . 112 94 Cannons 512 | . . . . . 512 Explosions 718 | . 29 . . . 689 Melee . | . . . . . . Ramming 10 | . . . . . 10 Kinetic 481 | . . . . . 481 Thermal 443 | . 66 . . . 377 Explosive 329 | . . . . . 329 Electromagnetic 648 | . 200 228 . 112 108 Impact . | . . . . . . Slashing . | . . . . . . Piercing . | . . . . . . Highest Corruption 9 | . . . . . 9 Average Corruption 8 | . . . . . 8 Corruption Purged . | . . . . . . Corruption Blocked . | . . . . . . Effects 6 | . . . . . 6 Matter Fused 1 | . . . . . 1 Heat Flow Errors 2 | . . . . . 2 Energy Discharges 1 | . . . . . 1 Parts Rejected 1 | . . . . . 1 Data Loss (major) 1 | . . . . . 1 Overload Shots . | . . . . . . Overflow Damage 43 | . . . . . 43 Projectiles 11 | . . . . . 11 Explosions 32 | . . . . . 32 Melee . | . . . . . . Knockbacks 4 | . . . . . 4 Impact . | . . . . . . Kinetic 4 | . . . . . 4 Secondary . | . . . . . . Self-Inflicted Damage 219 | . 22 . . . 197 Shots 10 | . 1 . . . 9 Rammed 9 | . . . . . 9 Targets Rammed 9 | . . . . . 9 Kicked . | . . . . . . Crushed . | . . . . . . Highest Temperature 424 | . 36 164 . 228 424 Average Temperature 106 | . 16 72 . 115 136 Received Heat Transfer 981 | . 48 12 . 48 873 Effects 3 | . . . . . 3 Shutdowns 1 | . . . . . 1 Interference 1 | . . . . . 1 Damage (minor) 1 | . . . . . 1 Siege Activations . | . . . . . . Robots Corrupted . | . . . . . . Combat Hostiles . | . . . . . . Parts Fried . | . . . . . . Impact Corruptions 1 | . . . . . 1 Robots Melted 2 | . . . . . 2 Combat Hostiles 2 | . . . . . 2 Parts Melted 12 | . . . . . 12 Heat Transferred 2151 | . 211 . . . 1940 Parts Sabotaged . | . . . . . . Parts Stolen . | . . . . . . Parts Stripped . | . . . . . . Power Chain Reactions 2 | . 1 . . . 1 Alert | -11 -10 -10 -10 -9 -8 ------- Run | Yrd Mat Min Exi Min Mat Peak Influence 348 | . 130 348 . 50 315 Initial 19 | . . 13 . . 19 Average 120 | . 34 196 . 46 215 Maximum Alert Level 1 | . . 1 . . 1 Low Security (%) 69 | 100 100 50 . 100 28 Level 1 30 | . . 49 . . 71 Level 2 . | . . . . . . Level 3 . | . . . . . . Level 4 . | . . . . . . Level 5 . | . . . . . . High Security . | . . . . . . Max Security . | . . . . . . Squads Dispatched 3 | . 1 . . . 2 Investigation 1 | . 1 . . . . Extermination . | . . . . . . Reinforcement 2 | . . . . . 2 Assault . | . . . . . . Garrison . | . . . . . . Intercept . | . . . . . . Searches Triggered . | . . . . . . Construction Impeded 1 | . . . . . 1 Haulers Reinforced . | . . . . . . Active Scanning Responses . | . . . . . . Cargo Convoy Interrupts . | . . . . . . Stealth | -11 -10 -10 -10 -9 -8 --------- Run | Yrd Mat Min Exi Min Mat Distress Signals . | . . . . . . Communications Jammed . | . . . . . . Distress Signals . | . . . . . . Times Spotted 43 | . 7 15 . 2 19 Peak Tracking Total 7 | . 3 6 . 2 7 Tactical Retreats 4 | . 1 3 . . . Traps | -11 -10 -10 -10 -9 -8 ------- Run | Yrd Mat Min Exi Min Mat Traps Triggered 1 | . 1 . . . . Indirectly . | . . . . . . Trap Hack Attempts . | . . . . . . Triggered . | . . . . . . Disarmed . | . . . . . . Reprogrammed . | . . . . . . Reused . | . . . . . . Traps Extracted . | . . . . . . Installed . | . . . . . . Triggered . | . . . . . . Machines | -11 -10 -10 -10 -9 -8 ---------- Run | Yrd Mat Min Exi Min Mat Machines Disabled 4 | . . . . . 4 Max in Single Turn 3 | . . . . . 3 Machines Repaired . | . . . . . . Machines Dismantled . | . . . . . . Machines Sabotaged . | . . . . . . Overloaded Fab Kills . | . . . . . . Hacking | -11 -10 -10 -10 -9 -8 --------- Run | Yrd Mat Min Exi Min Mat Machines Accessed 3 | . 1 . 2 . . Terminals . | . . . . . . Fabricators . | . . . . . . Repair Stations 1 | . 1 . . . . Recycling Units . | . . . . . . Scanalyzers . | . . . . . . Garrison Access . | . . . . . . Total Hacks 4 | . 2 . 2 . . Successful 4 | . 2 . 2 . . Failed . | . . . . . . Catastrophic . | . . . . . . Database Lockouts . | . . . . . . Manual 1 | . . . 1 . . Terminals . | . . . . . . Fabricators . | . . . . . . Repair Stations 2 | . 2 . . . . Recycling Units . | . . . . . . Scanalyzers . | . . . . . . Garrison Access . | . . . . . . Terminal Hacks 2 | . . . 2 . . Record 1 | . . . 1 . . Derelict Proto ID Bank 1 | . . . 1 . . Fabricator Hacks . | . . . . . . Repair Station Hacks 2 | . 2 . . . . Scan Component 1 | . 1 . . . . Repair 1 | . 1 . . . . Recycling Unit Hacks . | . . . . . . Scanalyzer . | . . . . . . Garrison Access Hacks . | . . . . . . Unauthorized Hacks . | . . . . . . Terminals . | . . . . . . Fabricators . | . . . . . . Repair Stations . | . . . . . . Recycling Units . | . . . . . . Scanalyzers . | . . . . . . Garrison Access . | . . . . . . Data Cores Recovered . | . . . . . . Used . | . . . . . . Hacking Detections 1 | . 1 . . . . Full Trace Events . | . . . . . . Feedback Events . | . . . . . . Feedback Blocked . | . . . . . . Robot Schematics Acquired . | . . . . . . Robots Built . | . . . . . . Authchips . | . . . . . . Time . | . . . . . . Total Robot Build Rating . | . . . . . . Part Schematics Acquired . | . . . . . . Parts Built . | . . . . . . Authchips . | . . . . . . Time . | . . . . . . Total Part Build Rating . | . . . . . . Parts Repaired 1 | . 1 . . . . Time 53 | . 53 . . . . Parts Recycled . | . . . . . . Recycled Matter . | . . . . . . Retrieved Matter . | . . . . . . Retrieved Components . | . . . . . . Parts Scanalyzed . | . . . . . . Part Schematics Acquired . | . . . . . . Parts Damaged . | . . . . . . Bothacking | -11 -10 -10 -10 -9 -8 ------------ Run | Yrd Mat Min Exi Min Mat Used RIF Installer . | . . . . . . Robots Hacked . | . . . . . . Non-combat . | . . . . . . Combat . | . . . . . . Robot Hacks Applied . | . . . . . . Relay Couplers Released . | . . . . . . Fabnet Peak Effective % . | . . . . . . Robots Rewired . | . . . . . . Allies Hacked . | . . . . . . Hacks Repelled . | . . . . . . Allies | -11 -10 -10 -10 -9 -8 -------- Run | Yrd Mat Min Exi Min Mat Total Allies . | . . . . . . Largest Group . | . . . . . . Highest-Rated Group . | . . . . . . Highest-Rated Ally . | . . . . . . Total Orders . | . . . . . . Ally Attacks . | . . . . . . Total Damage . | . . . . . . Kills . | . . . . . . Allies Corrupted . | . . . . . . Allies Melted . | . . . . . . Intel | -11 -10 -10 -10 -9 -8 ------- Run | Yrd Mat Min Exi Min Mat Robot Analysis Total . | . . . . . . Derelict Logs Recovered 3 | . . 2 . 1 . Drone Launches . | . . . . . . Drone Recoveries . | . . . . . . Exploration | -11 -10 -10 -10 -9 -8 ------------- Run | Yrd Mat Min Exi Min Mat Turns Passed 2203 | 117 456 462 630 196 342 Spaces Moved 923 | 54 199 210 263 69 128 Core 91 | 54 7 . . . 30 Treads 832 | . 192 210 263 69 98 Legs . | . . . . . . Wheels . | . . . . . . Hover . | . . . . . . Flight . | . . . . . . Fastest Speed 50 | 50 160 160 240 240 50 Average Speed 197 | 188 162 180 240 240 173 Slowest Speed 1100 | 200 250 240 240 240 1100 Overloaded Moves . | . . . . . . Propulsion Burnouts . | . . . . . . Robots Hopped . | . . . . . . Cave-ins Triggered . | . . . . . . Exploration Rate (%) 28 | 4 29 47 64 15 11 Regions Visited 5 Branch Regions 3 Pre-discovered Areas 1 | . . 1 . . . Known Exits Taken 4 | . 1 1 1 1 . Unknown Exits Taken 1 | 1 . . . . . Scrap Searched 1 | . . 1 . . . Spaces Dug . | . . . . . . Terrain Destroyed 27 | . 5 . . . 22 Melee . | . . . . . . Projectile 1 | . . . . . 1 AOE 26 | . 5 . . . 21 Terrain Rammed . | . . . . . . Walls Destroyed . | . . . . . . Machines Disabled . | . . . . . . Actions | -11 -10 -10 -10 -9 -8 --------- Run | Yrd Mat Min Exi Min Mat Total 1198 | 68 310 266 263 90 201 Wait 132 | 8 72 32 . 16 4 Move 918 | 53 198 209 262 68 128 Hop . | . . . . . . Pick Up 24 | 3 14 4 1 1 1 Fast Attach 12 | 4 1 . . . 7 Attach 16 | . 4 . . . 12 Detach 3 | . 1 . . . 2 Swap 3 | . 2 1 . . . Drop 13 | . 6 5 . . 2 Fire 69 | . 12 15 . 5 37 Melee . | . . . . . . Ram 2 | . . . . . 2 Kick . | . . . . . . Crush 6 | . . . . . 6 Escape Stasis . | . . . . . . Rewire . | . . . . . . Trap . | . . . . . . Miscellaneous . | . . . . . . Route ------- -11/Scrapyard -10/Materials (discovered 2 exits: *Min x2) -10/Mines (discovered 2 exits: *Mat / *Exi) -10/Exiles -9/Mines -8/Materials (discovered 1 exit: [*Sto]) History --------- Turn | Location | Event 39 | -11/Scrapyard | Discovered new exit (range 15) 118 | -11/Scrapyard | Entered Materials 301 | -10/Materials | Build established: Mutant 381 | -10/Materials | Repaired Corrupted Lgt. Nuclear Core 503 | -10/Materials | Discovered new exit (range 9) 527 | -10/Materials | Discovered new exit (range 16) 572 | -10/Materials | Identified exit to Mines 574 | -10/Materials | Entered Mines 601 | -10/Mines | Met a Derelict bent on vengeance 624 | -10/Mines | Discovered new exit (range 11) 630 | -10/Mines | Learned Materials stockpile data 640 | -10/Mines | Identified exit to Materials 722 | -10/Mines | Learned location of Storage (-8) 1027 | -10/Mines | Deemed a non-threat by the Exiles lab entrance 1027 | -10/Mines | Discovered new exit (range 5) 1034 | -10/Mines | Identified exit to Exiles 1036 | -10/Mines | Entered Exiles 1096 | -10/Exiles | Met 8R-AWN 1137 | -10/Exiles | Met EX-HEX 1233 | -10/Exiles | Met EX-BIN 1264 | -10/Exiles | Aligned with FarCom system 1267 | -10/Exiles | Given EX-Vault access code 1322 | -10/Exiles | Opened EX-Vault 1339 | -10/Exiles | Found Firepult 1388 | -10/Exiles | Warned to stay clear of 0b10 Research branches 1498 | -10/Exiles | Met EX-DEC 1645 | -10/Exiles | Discovered new exit (range 10) 1664 | -10/Exiles | Identified exit to Mines 1666 | -10/Exiles | Left Exiles lab with Firepult 1666 | -10/Exiles | Entered Mines 1749 | -9/Mines | Learned location of 1 exit from Lower Caves 1820 | -9/Mines | Discovered new exit (range 13) 1822 | -9/Mines | Received a Rocket Launcher from a helpful Derelict 1841 | -9/Mines | Found a damaged Exp. Sensor Array with a note attached 1846 | -9/Mines | Found Prototype Device 1859 | -9/Mines | Identified exit to Materials 1862 | -9/Mines | Entered Materials 1862 | -8/Materials | Evolved 4 slots: Power x1, Utility x2, Weapon x1 1924 | -8/Materials | Discovered new exit (range 11) 2004 | -8/Materials | Core integrity fell below 50% 2031 | -8/Materials | Lost 12 parts (2p2n2u6w) 2074 | -8/Materials | Identified Exp. Sensor Array 2182 | -8/Materials | Lost 5 parts (2p1n2u) 2187 | -8/Materials | Core integrity fell below 20% 2204 | -8/Materials | Core destroyed Last Messages --------------- Imp. Ion Engine destroyed. Critical hit (Burn: +37). Acquired 3 matter. System corrupted: Heat flow error (+212). Imp. Light Cannon destroyed. Critical hit (Burn: +37). Lgt. Treads destroyed. Slammed into G-47 Trooper. Lgt. Treads destroyed. Critical hit (Burn: +37). Slammed into G-47 Trooper. Destroyed Lgt. Nuclear Core. G-47 Trooper system corrupted by crushing effect. G-47 Trooper system terminally corrupted. Acquired 5 matter. Slammed into G-47 Trooper. System corrupted: Energy discharge (-22). Slammed into G-47 Trooper. Destabilizing: Core damaged (-27). Map ----- +----------------------------------------------------+ | ?+ T # %#???????????????????????????????????? | | ?# #% #???????????????????????????????????? | | ??########%% #???????????????????????????????????? | | ??# ! = ###########?????????????????????????? | | ??# * # """ """ #?????????????????????????? | | ??# # """ """ #?????????????????????????? | | ??# ###! # """ """ #?????????????????????????? | | ??# # ## # % #?????????????????????????? | | ??# #### =# #?????????????????????????? | | ### #??# % + #?????????????????????????? | | #??# # #?????????????????????????? | | #??# #! #?????????????????????????? | | #?## ###########?????????????????????????? | | ##+###### ######################?????????????? | | # !! ?????????????? | | # %g% % ^ ?????????????? | | # %%%== ?????????????? | | ! !!! # ####### ########?????????????????? | | !! #######?????# #????????????????????????? | | !! #???????????# #????????????????????????? | | #???????????# #????????????????????????? | | #???????????# #????????????????????????? | | #########???????????# u #????????????????????????? | | ????????????????????# ##############???????????? | | ????????????????????# u ?????? | | ????????????????????# @g ?????? | | ????????????????????# ?????? | | ????????????????????###################### ??????? | | ?????[????????????????????????????????????w??????? | | ?????????????????????????????????????????????????? | | ?????????????????????????????????????????????????? | | ?????????????????????????????????????????????????? | | ?????????????????????????????????????????????????? | | ?????????????????????????????????????????????????? | | ?????????????????????????????????????????????????? | | ?????????????Y???????????????????????????????????? | | ??????????????????????w??????????????????????????? | | ?????????????????????????????????????????????????? | | ?????????????????????????????????????????????????? | | ?????????????????????????????????????????????????? | | ?????????????????????????????????????????????????? | | ?????????????????????????????????????????????!???? | | ?????????????????????????????????????????????????? | | ?????????????????????????????????????????????????? | | ?????????????????????????????????????????????????? | | ?????????????????????????????????????????????[???? | | ?????????????????????????????????????????????????? | | ?????????????????????????????????????????????????? | | ?????????????????????????????????????????????????? | | ?????????????????????????????????????????????????? | +----------------------------------------------------+ Best States ------------- Heat Dissipation 53 Energy Generation 17 Energy Capacity 290 Matter Stores 300 Matter Capacity 300 Sight Range 16 Robot Scan Range 20 Terrain Scan Density 10 Armor Coverage 150 Evasion (%) 50 Targeting Accuracy 5 Recoil Reduction 2 Item Schematics ----------------- None Robot Schematics ------------------ None Fabricated ------------ Nothing Alien Tech Used ----------------- None Achievements -------------- It's Just You Challenges ------------ None Game ------ Seed WarpDynamicNukerbomber Manual? 0 Play Time 00:22:31 Cumulative 6.5 hours Start 2024.04.10 @ 10:21:12 End 2024.04.10 @ 10:43:40 Sessions 1 Manual Loads 0 Difficulty Rogue Special Mode None Game No. 6 Rogue 6 Adventurer 0 Explorer 0 Win Type - Total 0 Types 0/0/0/0/0/0/0/0/0 Lore% 12 Gallery% 13 Achievement% 13 Wizard Run 0 Options --------- Layout 1 ASCII 0 Keyboard 0 Movement Mouse Keybinds 0 Fullscreen 1 Font 32/SmallcapsGlow Map View 50x35 Zoom Use 0% Tactical HUD 0 Map Filters NONE Filters NONE Steam 1 RUN: 0698089a-eae1-460b-a7ef-47bfbe91aff6